[Event "European Online Club-ch-I 2021"]
[Site "Online"]
[Date "2021.03.27"]
[Round "2.4"]
[White "Schwerteck, Michael"]
[Black "Rapaire, Jean-Michel"]
[Result "1-0"]
[ECO "A41"]
[WhiteElo "2113"]
[BlackElo "1739"]
[Annotator "NA"]
[PlyCount "49"]
[EventDate "2021.03.27"]
[EventType "team-tourn"]
[EventCountry "NET"]
[SourceTitle "playchess.com"]
[Source "ChessBase"]
[SourceQuality "1"]
[TimeControl "900+5"]

1. d4 {[%emt 0:00:04]} d6 {[%emt 0:11:16]} 2. g3 {[%emt 0:00:21]} e5 {[%emt 0:00:07]} 3. dxe5 {[%emt 0:00:12]} dxe5 {[%emt 0:00:02]} 4. Qxd8+ {[%emt 0:00:02]} Kxd8 {[%emt 0:00:02]} 5. Nc3 {[%emt 0:00:22]} c6 {[%emt 0:00:02]} 6. f4 {[%emt 0:00:16]} Bd6 {[%emt 0:00:31]} 7. Ne4 {[%emt 0:01:00]} Bc7 {[%emt 0:00:10]} 8. fxe5 {[%emt 0:00:19]} Bxe5 {[%emt 0:00:04]} 9. Nf3 {[%emt 0:00:05]} f6 {[%emt 0:00:19]} 10. Nxe5 {[%emt 0:00:15]} fxe5 {[%emt 0:00:01]} 11. Bg5+ {[%emt 0:00:10]} Kc7 {[%emt 0:00:08]} 12. O-O-O {[%emt 0:00:08]} Nd7 {[%emt 0:00:36]} 13. Bh3 {[%emt 0:00:55]} Ngf6 {[%emt 0:00:13]} 14. Nd6 {[%emt 0:00:29]} h6 {[%emt 0:00:14]} 15. Bxf6 {[%emt 0:00:13]} Nxf6 {[%emt 0:00:09]} 16. Nxc8 {[%emt 0:00:03]} Raxc8 {[%emt 0:00:04]} 17. Bxc8 {[%emt 0:00:02]} Rxc8 {[%emt 0:00:02]} 18. Rhf1 {[%emt 0:00:17]} Rd8 {[%emt 0:00:07]} 19. Rxd8 {[%emt 0:00:05]} Kxd8 {[%emt 0:00:01]} 20. Kd2 {[%emt 0:00:14]} Ke7 {[%emt 0:00:02]} 21. h3 {[%emt 0:00:26]} g5 {[%emt 0:00:29]} 22. g4 {[%emt 0:00:14]} Nd5 {[%emt 0:00:39]} 23. Rf5 {[%emt 0:00:17]} Ke6 {[%emt 0:00:11]} 24. Rf8 {[%emt 0:00:11]} Nf4 {[%emt 0:00:02]} 25. Rh8 {[%emt 0:00:07]} 1-0

[Event "European Online Club-ch-I 2021"]
[Site "Online"]
[Date "2021.03.27"]
[Round "2.5"]
[White "Sorensen, Jan"]
[Black "Batsiashvili, Nino"]
[Result "1/2-1/2"]
[ECO "B10"]
[WhiteElo "2369"]
[BlackElo "2491"]
[Annotator "ChessBase"]
[PlyCount "147"]
[EventDate "2021.03.27"]
[EventType "team-tourn"]
[EventCountry "NET"]
[SourceTitle "playchess.com"]
[Source "ChessBase"]
[SourceQuality "1"]
[TimeControl "900+5"]

1. e4 {[%emt 0:00:00]} c6 {[%emt 0:00:04]} 2. Nf3 {[%emt 0:00:07]} d5 {[%emt 0:00:03]} 3. d3 {[%emt 0:00:01]} dxe4 {[%emt 0:00:12]} 4. dxe4 {[%emt 0:00:02]} Qxd1+ {[%emt 0:00:03]} 5. Kxd1 {[%emt 0:00:01]} g6 {[%emt 0:00:06]} 6. c3 {[%emt 0:00:14]} Nd7 {[%emt 0:00:20]} 7. Ne1 {[%emt 0:00:56]} a5 {[%emt 0:00:15]} 8. a4 {[%emt 0:00:06]} Nc5 {[%emt 0:00:09]} 9. Nd2 {[%emt 0:00:31]} Bh6 {[%emt 0:00:05]} 10. Nd3 {[%emt 0:01:00]} Bxd2 {[%emt 0:00:53]} 11. Nxc5 {[%emt 0:00:03]} Bxc1 {[%emt 0:00:02]} 12. Rxc1 {[%emt 0:00:13]} Nf6 {[%emt 0:00:02]} 13. f3 {[%emt 0:00:10]} b6 {[%emt 0:00:05]} 14. Nd3 {[%emt 0:00:15]} Be6 {[%emt 0:00:14]} 15. Kc2 {[%emt 0:00:05]} g5 {[%emt 0:00:04]} 16. Ne5 {[%emt 0:00:08]} Rc8 {[%emt 0:00:34]} 17. Bc4 {[%emt 0:00:21]} Bxc4 {[%emt 0:00:26]} 18. Nxc4 {[%emt 0:00:02]} Rb8 {[%emt 0:00:29]} 19. Rcd1 {[%emt 0:00:26]} O-O {[%emt 0:00:41]} 20. Rd2 {[%emt 0:00:29]} h5 {[%emt 0:00:34]} 21. Rhd1 {[%emt 0:00:17]} Kg7 {[%emt 0:00:42]} 22. Ne3 {[%emt 0:00:22]} e6 {[%emt 0:00:02]} 23. Nc4 {[%emt 0:00:08]} Rfc8 {[%emt 0:00:23]} 24. Rd6 {[%emt 0:00:21]} Rc7 {[%emt 0:00:34]} 25. Ne5 {[%emt 0:00:14]} Rbc8 {[%emt 0:00:13]} 26. Nc4 {[%emt 0:00:11]} Rb7 {[%emt 0:00:30]} 27. Ne5 {[%emt 0:00:11]} Rbc7 {[%emt 0:00:23]} 28. Nc4 {[%emt 0:01:46]} Rb7 {[%emt 0:00:08]} 29. Rd8 {[%emt 0:00:30]} Rxd8 {[%emt 0:01:05]} 30. Rxd8 {[%emt 0:00:03]} Nd7 {[%emt 0:00:10]} 31. Nd6 {[%emt 0:01:09]} Ra7 {[%emt 0:00:12]} 32. Nc4 {[%emt 0:01:02]} Kf6 {[%emt 0:00:24]} 33. Rc8 {[%emt 0:00:11]} b5 {[%emt 0:00:48]} 34. axb5 {[%emt 0:01:43]} cxb5 {[%emt 0:00:03]} 35. Nd6 {[%emt 0:00:01]} b4 {[%emt 0:00:22]} 36. cxb4 {[%emt 0:00:12]} axb4 {[%emt 0:00:03]} 37. Rc4 {[%emt 0:00:06]} h4 {[%emt 0:01:39]} 38. Rxb4 {[%emt 0:00:24]} h3 {[%emt 0:00:06]} 39. g3 {[%emt 0:01:30]} Ne5 {[%emt 0:00:05]} 40. f4 {[%emt 0:00:01]} Nf3 {[%emt 0:00:28]} 41. e5+ {[%emt 0:00:25]} Kg6 {[%emt 0:00:06]} 42. fxg5 {[%emt 0:00:17]} Nxh2 {[%emt 0:00:56]} 43. Rh4 {[%emt 0:00:13]} Nf3 {[%emt 0:00:02]} 44. Rxh3 {[%emt 0:00:09]} Nxe5 {[%emt 0:00:10]} 45. Ne4 {[%emt 0:00:47]} Kf5 {[%emt 0:00:53]} 46. Rh4 {[%emt 0:00:05]} Rc7+ {[%emt 0:00:02]} 47. Kb3 {[%emt 0:00:04]} Ng6 {[%emt 0:00:12]} 48. Nd6+ {[%emt 0:00:13]} Kxg5 {[%emt 0:00:19]} 49. Rh7 {[%emt 0:00:02]} Ne5 {[%emt 0:00:05]} 50. Rg7+ {[%emt 0:00:11]} Kh6 {[%emt 0:00:16]} 51. Rg8 {[%emt 0:00:14]} Rc6 {[%emt 0:00:16]} 52. Ne4 {[%emt 0:00:16]} f5 {[%emt 0:00:16]} 53. Ng5 {[%emt 0:00:16]} Ng4 {[%emt 0:00:21]} 54. Nf7+ {[%emt 0:00:07]} Kh7 {[%emt 0:00:02]} 55. Re8 {[%emt 0:00:07]} Kg7 {[%emt 0:00:05]} 56. Nd8 {[%emt 0:00:16]} Rb6+ {[%emt 0:00:02]} 57. Kc3 {[%emt 0:00:01]} e5 {[%emt 0:00:16]} 58. b4 {[%emt 0:00:06]} e4 {[%emt 0:00:04]} 59. Kc4 {[%emt 0:00:04]} Nf6 {[%emt 0:00:41]} 60. Re5 {[%emt 0:00:10]} Kg6 {[%emt 0:00:08]} 61. b5 {[%emt 0:00:11]} Kg5 {[%emt 0:00:23]} 62. Ne6+ {[%emt 0:00:02]} Kg4 {[%emt 0:00:02]} 63. Nd4 {[%emt 0:00:02]} Rb8 {[%emt 0:00:44]} 64. Nxf5 {[%emt 0:00:07]} Nd7 {[%emt 0:00:07]} 65. Re7 {[%emt 0:00:13]} Nb6+ {[%emt 0:00:02]} 66. Kd4 {[%emt 0:00:04]} Kxf5 {[%emt 0:00:00]} 67. Re5+ {[%emt 0:00:03]} Kg4 {[%emt 0:00:03]} 68. Rxe4+ {[%emt 0:00:02]} Kxg3 {[%emt 0:00:01]} 69. Kc5 {[%emt 0:00:01]} Kf3 {[%emt 0:00:03]} 70. Re6 {[%emt 0:00:05]} Na4+ {[%emt 0:00:04]} 71. Kb4 {[%emt 0:00:03]} Nb6 {[%emt 0:00:03]} 72. Kc5 {[%emt 0:00:02]} Na4+ {[%emt 0:00:03]} 73. Kb4 {[%emt 0:00:01]} Nb6 {[%emt 0:00:08]} 74. Kc5 {[%emt 0:00:02]} 1/2-1/2

[Event "European Online Club-ch-I 2021"]
[Site "Online"]
[Date "2021.03.27"]
[Round "2.6"]
[White "Javakhishvili, Lela"]
[Black "Vinter-Schou, Uffe"]
[Result "0-1"]
[ECO "A70"]
[WhiteElo "2473"]
[BlackElo "2320"]
[Annotator "ChessBase"]
[PlyCount "92"]
[EventDate "2021.03.27"]
[EventType "team-tourn"]
[EventCountry "NET"]
[SourceTitle "playchess.com"]
[Source "ChessBase"]
[SourceQuality "1"]
[TimeControl "900+5"]

1. d4 {[%emt 0:00:00]} Nf6 {[%emt 0:00:06]} 2. c4 {[%emt 0:00:04]} e6 {[%emt 0:00:01]} 3. Nf3 {[%emt 0:00:03]} c5 {[%emt 0:00:02]} 4. d5 {[%emt 0:00:24]} exd5 {[%emt 0:00:03]} 5. cxd5 {[%emt 0:00:01]} d6 {[%emt 0:00:01]} 6. Nc3 {[%emt 0:00:02]} g6 {[%emt 0:00:05]} 7. h3 {[%emt 0:00:11]} Bg7 {[%emt 0:00:18]} 8. e4 {[%emt 0:00:03]} O-O {[%emt 0:00:02]} 9. Bd3 {[%emt 0:00:02]} a6 {[%emt 0:00:01]} 10. a4 {[%emt 0:00:03]} Nbd7 {[%emt 0:00:01]} 11. O-O {[%emt 0:00:04]} Nh5 {[%emt 0:00:02]} 12. g4 {[%emt 0:00:36]} Nhf6 {[%emt 0:00:05]} 13. Bf4 {[%emt 0:00:01]} Qe7 {[%emt 0:00:09]} 14. Qd2 {[%emt 0:00:10]} h5 {[%emt 0:00:24]} 15. Bg5 {[%emt 0:01:10]} hxg4 {[%emt 0:00:25]} 16. hxg4 {[%emt 0:00:02]} Re8 {[%emt 0:00:53]} 17. Rfe1 {[%emt 0:01:24]} Qf8 {[%emt 0:00:07]} 18. Nh2 {[%emt 0:00:22]} Ne5 {[%emt 0:00:38]} 19. Be2 {[%emt 0:00:03]} Nfxg4 {[%emt 0:00:35]} 20. f4 {[%emt 0:00:33]} Nxh2 {[%emt 0:00:12]} 21. Kxh2 {[%emt 0:00:29]} Ng4+ {[%emt 0:00:10]} 22. Kg3 {[%emt 0:00:42]} f6 {[%emt 0:01:15]} 23. Bh4 {[%emt 0:01:38]} g5 {[%emt 0:03:05]} 24. Bxg4 {[%emt 0:00:05]} gxh4+ {[%emt 0:00:07]} 25. Kxh4 {[%emt 0:00:04]} f5 {[%emt 0:00:01]} 26. exf5 {[%emt 0:01:37]} Bxf5 {[%emt 0:00:09]} 27. Re6 {[%emt 0:00:15]} Rxe6 {[%emt 0:00:35]} 28. dxe6 {[%emt 0:00:04]} Qf6+ {[%emt 0:00:13]} 29. Kh3 {[%emt 0:00:29]} Qh6+ {[%emt 0:00:41]} 30. Kg3 {[%emt 0:00:03]} Qg6 {[%emt 0:00:04]} 31. Qe2 {[%emt 0:00:13]} Re8 {[%emt 0:00:04]} 32. Nd5 {[%emt 0:00:24]} Rxe6 {[%emt 0:00:06]} 33. Qf3 {[%emt 0:00:24]} c4 {[%emt 0:02:43]} 34. Rc1 {[%emt 0:00:54]} Be4 {[%emt 0:00:23]} 35. Qd1 {[%emt 0:00:16]} Bd3 {[%emt 0:00:11]} 36. b3 {[%emt 0:02:00]} Be2 {[%emt 0:00:14]} 37. Qxe2 {[%emt 0:00:16]} Rxe2 {[%emt 0:00:07]} 38. Rxc4 {[%emt 0:00:02]} Qd3+ {[%emt 0:01:04]} 39. Bf3 {[%emt 0:00:03]} Qxb3 {[%emt 0:00:33]} 40. Rc8+ {[%emt 0:00:06]} Kh7 {[%emt 0:00:04]} 41. Rc7 {[%emt 0:00:04]} Re6 {[%emt 0:00:13]} 42. f5 {[%emt 0:00:07]} Rh6 {[%emt 0:00:07]} 43. f6 {[%emt 0:00:11]} Rh3+ {[%emt 0:00:13]} 44. Kxh3 {[%emt 0:00:08]} Qxf3+ {[%emt 0:00:00]} 45. Kh4 {[%emt 0:00:02]} Qe4+ {[%emt 0:00:29]} 46. Kh3 {[%emt 0:00:13]} Qxd5 {[%emt 0:00:09]} 0-1

[Event "European Online Club-ch-I 2021"]
[Site "Online"]
[Date "2021.03.27"]
[Round "2.7"]
[White "Boe, Mads"]
[Black "Bulmaga, Irina"]
[Result "1-0"]
[ECO "A46"]
[WhiteElo "2250"]
[BlackElo "2440"]
[Annotator "NA"]
[PlyCount "97"]
[EventDate "2021.03.27"]
[EventType "team-tourn"]
[EventCountry "NET"]
[SourceTitle "playchess.com"]
[Source "ChessBase"]
[SourceQuality "1"]
[TimeControl "900+5"]

1. d4 {[%emt 0:00:00]} Nf6 {[%emt 0:00:04]} 2. Nf3 {[%emt 0:00:17]} e6 {[%emt 0:00:06]} 3. Bg5 {[%emt 0:00:06]} c5 {[%emt 0:00:18]} 4. c3 {[%emt 0:00:02]} Nc6 {[%emt 0:00:12]} 5. e3 {[%emt 0:00:04]} h6 {[%emt 0:00:04]} 6. Bh4 {[%emt 0:00:06]} Qb6 {[%emt 0:00:09]} 7. Qb3 {[%emt 0:00:03]} Be7 {[%emt 0:00:36]} 8. Nbd2 {[%emt 0:00:06]} d5 {[%emt 0:00:10]} 9. h3 {[%emt 0:00:07]} Bd7 {[%emt 0:00:43]} 10. Bg3 {[%emt 0:00:05]} c4 {[%emt 0:00:12]} 11. Qc2 {[%emt 0:00:07]} Qa5 {[%emt 0:00:41]} 12. Be2 {[%emt 0:00:41]} b5 {[%emt 0:00:19]} 13. O-O {[%emt 0:00:57]} O-O {[%emt 0:00:12]} 14. b3 {[%emt 0:00:12]} Qa3 {[%emt 0:01:21]} 15. Rfb1 {[%emt 0:01:33]} Bd6 {[%emt 0:02:07]} 16. Ne5 {[%emt 0:00:15]} Bxe5 {[%emt 0:00:22]} 17. dxe5 {[%emt 0:00:06]} Ne8 {[%emt 0:00:08]} 18. bxc4 {[%emt 0:00:20]} bxc4 {[%emt 0:00:04]} 19. e4 {[%emt 0:00:04]} Na5 {[%emt 0:01:39]} 20. Rb4 {[%emt 0:01:36]} Nc6 {[%emt 0:00:22]} 21. Rb7 {[%emt 0:00:05]} Bc8 {[%emt 0:00:56]} 22. Rbb1 {[%emt 0:00:18]} Nc7 {[%emt 0:00:06]} 23. f4 {[%emt 0:01:48]} a6 {[%emt 0:01:03]} 24. Qc1 {[%emt 0:00:48]} Qxc1+ {[%emt 0:00:23]} 25. Rxc1 {[%emt 0:00:02]} Rb8 {[%emt 0:00:08]} 26. Rab1 {[%emt 0:00:43]} Bd7 {[%emt 0:00:12]} 27. Bf2 {[%emt 0:00:29]} Rxb1 {[%emt 0:02:04]} 28. Rxb1 {[%emt 0:00:04]} Nb5 {[%emt 0:00:01]} 29. Rc1 {[%emt 0:00:04]} Rb8 {[%emt 0:00:02]} 30. Bf3 {[%emt 0:00:04]} d4 {[%emt 0:00:18]} 31. cxd4 {[%emt 0:01:35]} Nbxd4 {[%emt 0:00:02]} 32. Nxc4 {[%emt 0:00:20]} Nxf3+ {[%emt 0:00:04]} 33. gxf3 {[%emt 0:00:02]} Nb4 {[%emt 0:00:02]} 34. Rb1 {[%emt 0:00:31]} Nc6 {[%emt 0:00:35]} 35. Rxb8+ {[%emt 0:00:18]} Nxb8 {[%emt 0:00:00]} 36. Nd6 {[%emt 0:00:28]} Ba4 {[%emt 0:00:19]} 37. Bc5 {[%emt 0:00:14]} Nc6 {[%emt 0:00:06]} 38. Kf2 {[%emt 0:00:07]} Bd1 {[%emt 0:00:08]} 39. h4 {[%emt 0:00:07]} h5 {[%emt 0:00:08]} 40. Ke3 {[%emt 0:00:23]} g6 {[%emt 0:00:24]} 41. Nc4 {[%emt 0:00:44]} Ba4 {[%emt 0:00:15]} 42. Nb2 {[%emt 0:00:11]} Bc2 {[%emt 0:00:31]} 43. Kd2 {[%emt 0:00:11]} Bb1 {[%emt 0:00:02]} 44. a3 {[%emt 0:00:02]} Na5 {[%emt 0:00:14]} 45. Kc3 {[%emt 0:00:04]} Nc6 {[%emt 0:00:03]} 46. Nc4 {[%emt 0:00:28]} Ba2 {[%emt 0:00:39]} 47. Nd2 {[%emt 0:00:03]} Na5 {[%emt 0:00:03]} 48. Bb6 {[%emt 0:00:15]} Nc6 {[%emt 0:00:14]} 49. Kb2 {[%emt 0:00:06]} 1-0

[Event "European Online Club-ch-I 2021"]
[Site "Online"]
[Date "2021.03.27"]
[Round "2.8"]
[White "Atalik, Ekaterina"]
[Black "Rendboe, John Filip"]
[Result "1-0"]
[ECO "E18"]
[WhiteElo "2430"]
[BlackElo "2169"]
[Annotator "NA"]
[PlyCount "77"]
[EventDate "2021.03.27"]
[EventType "team-tourn"]
[EventCountry "NET"]
[SourceTitle "playchess.com"]
[Source "ChessBase"]
[SourceQuality "1"]
[TimeControl "900+5"]

1. d4 {[%emt 0:00:00]} d5 {[%emt 0:00:08]} 2. c4 {[%emt 0:00:03]} e6 {[%emt 0:00:11]} 3. Nc3 {[%emt 0:00:03]} Be7 {[%emt 0:00:08]} 4. Nf3 {[%emt 0:00:07]} Nf6 {[%emt 0:00:08]} 5. g3 {[%emt 0:00:31]} O-O {[%emt 0:00:13]} 6. Bg2 {[%emt 0:00:03]} b6 {[%emt 0:00:30]} 7. cxd5 {[%emt 0:00:24]} exd5 {[%emt 0:00:04]} 8. O-O {[%emt 0:00:02]} Bb7 {[%emt 0:00:14]} 9. Bf4 {[%emt 0:00:49]} Nh5 {[%emt 0:01:19]} 10. Rc1 {[%emt 0:00:36]} Nxf4 {[%emt 0:00:07]} 11. gxf4 {[%emt 0:00:02]} Nd7 {[%emt 0:00:35]} 12. Ne5 {[%emt 0:00:36]} Nf6 {[%emt 0:00:20]} 13. e3 {[%emt 0:01:11]} a6 {[%emt 0:01:00]} 14. Qc2 {[%emt 0:02:21]} Rc8 {[%emt 0:00:44]} 15. Rfd1 {[%emt 0:00:19]} Qd6 {[%emt 0:00:59]} 16. Ne2 {[%emt 0:00:37]} Ne4 {[%emt 0:01:11]} 17. Ng3 {[%emt 0:00:59]} Nxg3 {[%emt 0:00:20]} 18. hxg3 {[%emt 0:00:04]} c5 {[%emt 0:00:58]} 19. dxc5 {[%emt 0:00:12]} Rxc5 {[%emt 0:00:04]} 20. Qf5 {[%emt 0:00:17]} Bc8 {[%emt 0:00:19]} 21. Qd3 {[%emt 0:00:41]} Bf6 {[%emt 0:00:49]} 22. Rxc5 {[%emt 0:00:15]} bxc5 {[%emt 0:00:36]} 23. Qxd5 {[%emt 0:00:19]} Qb6 {[%emt 0:00:11]} 24. b3 {[%emt 0:00:55]} Be6 {[%emt 0:00:42]} 25. Qe4 {[%emt 0:00:52]} Qa5 {[%emt 0:00:24]} 26. Qc2 {[%emt 0:00:32]} Rd8 {[%emt 0:01:44]} 27. Rxd8+ {[%emt 0:00:10]} Qxd8 {[%emt 0:00:03]} 28. Be4 {[%emt 0:00:13]} Bxe5 {[%emt 0:00:41]} 29. fxe5 {[%emt 0:00:06]} Qc7 {[%emt 0:00:58]} 30. Qd2 {[%emt 0:00:46]} g6 {[%emt 0:00:11]} 31. f4 {[%emt 0:00:27]} h5 {[%emt 0:00:17]} 32. Kf2 {[%emt 0:00:10]} Kg7 {[%emt 0:00:09]} 33. Bf3 {[%emt 0:00:20]} Qb6 {[%emt 0:00:10]} 34. Qc3 {[%emt 0:00:26]} a5 {[%emt 0:00:15]} 35. Be2 {[%emt 0:00:24]} Bd5 {[%emt 0:00:34]} 36. Bd3 {[%emt 0:00:35]} Be6 {[%emt 0:00:06]} 37. Be4 {[%emt 0:00:26]} Qb5 {[%emt 0:00:29]} 38. Bd3 {[%emt 0:00:02]} Qb6 {[%emt 0:00:02]} 39. Bc4 {[%emt 0:00:01]} 1-0

[Event "European Online Club-ch-I 2021"]
[Site "Online"]
[Date "2021.03.27"]
[Round "2.9"]
[White "Hurdzan, Tomas"]
[Black "Iskandarov, Misratdin"]
[Result "0-1"]
[ECO "A25"]
[WhiteElo "2317"]
[BlackElo "2535"]
[Annotator "ChessBase"]
[PlyCount "114"]
[EventDate "2021.03.27"]
[EventType "team-tourn"]
[EventCountry "NET"]
[SourceTitle "playchess.com"]
[Source "ChessBase"]
[SourceQuality "1"]
[TimeControl "900+5"]

1. c4 {[%emt 0:00:00]} e5 {[%emt 0:00:05]} 2. Nc3 {[%emt 0:00:04]} Nc6 {[%emt 0:00:02]} 3. g3 {[%emt 0:00:02]} g6 {[%emt 0:00:02]} 4. Bg2 {[%emt 0:00:02]} Bg7 {[%emt 0:00:02]} 5. e3 {[%emt 0:00:04]} d6 {[%emt 0:00:05]} 6. Nge2 {[%emt 0:00:01]} Nh6 {[%emt 0:00:04]} 7. a3 {[%emt 0:00:26]} O-O {[%emt 0:01:12]} 8. Nd5 {[%emt 0:00:37]} f5 {[%emt 0:00:11]} 9. O-O {[%emt 0:00:10]} g5 {[%emt 0:00:24]} 10. f4 {[%emt 0:01:07]} gxf4 {[%emt 0:00:13]} 11. gxf4 {[%emt 0:00:07]} e4 {[%emt 0:00:14]} 12. d3 {[%emt 0:00:24]} exd3 {[%emt 0:00:39]} 13. Qxd3 {[%emt 0:00:03]} Ng4 {[%emt 0:01:52]} 14. Nec3 {[%emt 0:00:45]} Ne7 {[%emt 0:01:17]} 15. Nxe7+ {[%emt 0:00:13]} Qxe7 {[%emt 0:00:03]} 16. Nd5 {[%emt 0:02:49]} Qf7 {[%emt 0:00:03]} 17. Ra2 {[%emt 0:00:16]} c6 {[%emt 0:00:45]} 18. Nc3 {[%emt 0:00:02]} Be6 {[%emt 0:00:07]} 19. b3 {[%emt 0:00:12]} Rad8 {[%emt 0:00:29]} 20. Re2 {[%emt 0:00:59]} Nf6 {[%emt 0:01:39]} 21. e4 {[%emt 0:01:10]} fxe4 {[%emt 0:00:33]} 22. Nxe4 {[%emt 0:00:05]} Bf5 {[%emt 0:00:16]} 23. Nxf6+ {[%emt 0:01:11]} Bxf6 {[%emt 0:00:12]} 24. Be4 {[%emt 0:00:31]} Bxe4 {[%emt 0:00:07]} 25. Qxe4 {[%emt 0:00:01]} d5 {[%emt 0:00:04]} 26. cxd5 {[%emt 0:00:10]} cxd5 {[%emt 0:00:02]} 27. Qd3 {[%emt 0:00:34]} Kh8 {[%emt 0:00:07]} 28. Rg2 {[%emt 0:01:45]} Rg8 {[%emt 0:00:08]} 29. Qf3 {[%emt 0:00:24]} d4 {[%emt 0:00:13]} 30. f5 {[%emt 0:00:11]} d3 {[%emt 0:00:25]} 31. Be3 {[%emt 0:02:12]} Qxb3 {[%emt 0:00:13]} 32. Bxa7 {[%emt 0:00:11]} Rxg2+ {[%emt 0:01:56]} 33. Kxg2 {[%emt 0:00:05]} Qc2+ {[%emt 0:00:05]} 34. Bf2 {[%emt 0:00:29]} Rg8+ {[%emt 0:01:40]} 35. Kh1 {[%emt 0:00:03]} Qe2 {[%emt 0:01:56]} 36. Qxe2 {[%emt 0:00:25]} dxe2 {[%emt 0:00:01]} 37. Rb1 {[%emt 0:00:05]} Rd8 {[%emt 0:00:02]} 38. Rxb7 {[%emt 0:00:05]} Rd1+ {[%emt 0:00:25]} 39. Kg2 {[%emt 0:00:01]} e1=Q {[%emt 0:00:10]} 40. Bxe1 {[%emt 0:00:02]} Rxe1 {[%emt 0:00:01]} 41. a4 {[%emt 0:00:10]} Ra1 {[%emt 0:00:02]} 42. Rb4 {[%emt 0:00:05]} Kg7 {[%emt 0:00:03]} 43. Rg4+ {[%emt 0:00:02]} Kh6 {[%emt 0:00:02]} 44. h3 {[%emt 0:00:06]} Ra3 {[%emt 0:00:06]} 45. Rc4 {[%emt 0:00:05]} Kg5 {[%emt 0:00:03]} 46. Re4 {[%emt 0:00:06]} Kxf5 {[%emt 0:00:03]} 47. Rc4 {[%emt 0:00:01]} h5 {[%emt 0:00:03]} 48. Rb4 {[%emt 0:00:13]} Ra2+ {[%emt 0:00:07]} 49. Kf3 {[%emt 0:00:03]} Be5 {[%emt 0:00:08]} 50. Rb5 {[%emt 0:00:07]} Rxa4 {[%emt 0:00:04]} 51. Kg2 {[%emt 0:00:02]} Ra2+ {[%emt 0:00:03]} 52. Kg1 {[%emt 0:00:02]} Ke4 {[%emt 0:00:03]} 53. Rb3 {[%emt 0:00:05]} Bd4+ {[%emt 0:00:03]} 54. Kh1 {[%emt 0:00:03]} Be3 {[%emt 0:00:04]} 55. Rb8 {[%emt 0:00:09]} Kf3 {[%emt 0:00:03]} 56. Rb1 {[%emt 0:00:05]} Kg3 {[%emt 0:00:02]} 57. Rf1 {[%emt 0:00:05]} Rh2# {[%emt 0:00:03]} 0-1

[Event "European Online Club-ch-I 2021"]
[Site "Online"]
[Date "2021.03.27"]
[Round "2.10"]
[White "Muradli, Mahammad"]
[Black "Bulockin, Martin"]
[Result "1-0"]
[ECO "E16"]
[WhiteElo "2449"]
[BlackElo "2315"]
[Annotator "NA"]
[PlyCount "91"]
[EventDate "2021.03.27"]
[EventType "team-tourn"]
[EventCountry "NET"]
[SourceTitle "playchess.com"]
[Source "ChessBase"]
[SourceQuality "1"]
[TimeControl "900+5"]

1. d4 {[%emt 0:00:00]} Nf6 {[%emt 0:00:07]} 2. c4 {[%emt 0:00:07]} e6 {[%emt 0:00:07]} 3. Nf3 {[%emt 0:00:01]} Bb4+ {[%emt 0:00:17]} 4. Bd2 {[%emt 0:00:02]} c5 {[%emt 0:00:07]} 5. Bxb4 {[%emt 0:00:02]} cxb4 {[%emt 0:00:01]} 6. g3 {[%emt 0:00:01]} b6 {[%emt 0:00:20]} 7. Bg2 {[%emt 0:00:06]} Bb7 {[%emt 0:00:01]} 8. O-O {[%emt 0:00:02]} O-O {[%emt 0:00:03]} 9. Qd3 {[%emt 0:00:03]} d6 {[%emt 0:00:06]} 10. Nbd2 {[%emt 0:00:03]} Nbd7 {[%emt 0:00:04]} 11. e4 {[%emt 0:00:11]} e5 {[%emt 0:00:04]} 12. Rfe1 {[%emt 0:00:22]} Qc7 {[%emt 0:00:23]} 13. Rad1 {[%emt 0:01:25]} Rfe8 {[%emt 0:00:16]} 14. Nh4 {[%emt 0:01:32]} Rad8 {[%emt 0:01:38]} 15. Nf5 {[%emt 0:00:13]} Nf8 {[%emt 0:00:30]} 16. Ne3 {[%emt 0:02:59]} Ne6 {[%emt 0:01:58]} 17. Nb3 {[%emt 0:00:17]} exd4 {[%emt 0:02:39]} 18. Nd5 {[%emt 0:00:06]} Bxd5 {[%emt 0:00:10]} 19. cxd5 {[%emt 0:00:01]} Nc5 {[%emt 0:00:08]} 20. Qc4 {[%emt 0:01:27]} Qd7 {[%emt 0:02:33]} 21. Nxd4 {[%emt 0:00:07]} Nfxe4 {[%emt 0:02:03]} 22. Nc6 {[%emt 0:01:21]} Qf5 {[%emt 0:00:41]} 23. f3 {[%emt 0:00:08]} Nf6 {[%emt 0:00:37]} 24. Nxd8 {[%emt 0:01:16]} Rxd8 {[%emt 0:00:00]} 25. Re2 {[%emt 0:00:03]} a5 {[%emt 0:00:15]} 26. Qb5 {[%emt 0:00:48]} Nfd7 {[%emt 0:00:28]} 27. Qc6 {[%emt 0:00:27]} Qf6 {[%emt 0:00:04]} 28. f4 {[%emt 0:00:08]} g6 {[%emt 0:00:09]} 29. Bh3 {[%emt 0:00:16]} h5 {[%emt 0:00:19]} 30. Qc7 {[%emt 0:00:29]} Na6 {[%emt 0:00:28]} 31. Qc6 {[%emt 0:00:23]} Nac5 {[%emt 0:00:02]} 32. Kg2 {[%emt 0:00:02]} Kf8 {[%emt 0:00:03]} 33. Rde1 {[%emt 0:00:05]} a4 {[%emt 0:00:19]} 34. Bxd7 {[%emt 0:00:32]} Rxd7 {[%emt 0:00:36]} 35. Re8+ {[%emt 0:00:42]} Kg7 {[%emt 0:00:03]} 36. Qc8 {[%emt 0:00:02]} Kh7 {[%emt 0:00:02]} 37. R1e2 {[%emt 0:00:09]} b3 {[%emt 0:00:06]} 38. axb3 {[%emt 0:00:03]} axb3 {[%emt 0:00:02]} 39. Rg8 {[%emt 0:00:19]} Ra7 {[%emt 0:00:12]} 40. f5 {[%emt 0:00:42]} h4 {[%emt 0:00:05]} 41. fxg6+ {[%emt 0:00:11]} fxg6 {[%emt 0:00:01]} 42. Ree8 {[%emt 0:00:05]} Qxb2+ {[%emt 0:00:03]} 43. Kh3 {[%emt 0:00:02]} Kh6 {[%emt 0:00:11]} 44. Qg4 {[%emt 0:00:05]} Qf6 {[%emt 0:00:08]} 45. Ref8 {[%emt 0:00:01]} Qg5 {[%emt 0:00:06]} 46. Rh8+ {[%emt 0:00:05]} 1-0